bitfinex/quotes_ETHUSD_20250815
["timestamp","ask_amount","ask_price","bid_price","bid_amount"]
[1755267588262,0.81719205,4569.1,4568.4,2.1889442]
[1755267588471,0.81719205,4569.1,4568.2,3.0008]
[1755267588654,0.9374,4569.0,4568.3,2.18898425]
[1755267588849,3.12606395,4569.0,4568.2,0.0008]
[1755267589058,0.4994,4568.9,4568.2,0.0008]
[1755267589577,0.1096,4568.7,4568.2,0.0008]
[1755267590079,0.9374,4568.6,4568.2,0.0008]
[1755267590586,0.1096,4568.3,4568.2,0.0008]
[1755267590757,2.62219311,4568.3,4568.2,0.0008]
[1755267590960,1.37059502,4568.3,4568.2,0.0008]
[1755267591440,1.047,4568.3,4568.2,0.0008]
[1755267592479,2.18881445,4568.7,4568.2,0.0008]
[1755267592658,0.1096,4568.4,4568.2,0.0008]
[1755267593061,4.011,4569.0,4568.3,2.18899809]
[1755267593376,4.19316084,4569.0,4568.2,0.0008]
[1755267593565,3.573,4569.0,4568.2,0.0008]
[1755267593764,0.002,4569.2,4569.1,2.18861482]
[1755267594572,0.002,4569.2,4569.1,5.72881482]
[1755267594771,0.002,4569.2,4569.1,5.72751482]
[1755267595052,1e-08,4569.2,4569.1,9.30181482]
[1755267595253,1e-08,4569.2,4569.1,6.87786556]
[1755267595599,1e-08,4569.2,4569.1,10.44956556]
[1755267597268,1e-08,4569.2,4569.1,6.87656556]
[1755267597577,1e-08,4569.2,4569.1,10.61433177]
[1755267598076,0.00195001,4569.5,4569.4,2.18847113]
[1755267598249,0.00195001,4569.5,4569.4,6.37041186]
[1755267598448,0.00195001,4569.5,4569.4,10.48131186]
[1755267600280,0.00195001,4569.5,4569.4,6.90931186]
[1755267600499,0.00195001,4569.5,4569.4,10.48131186]
[1755267600663,0.00195001,4569.5,4569.4,6.48001186]
[1755267600996,0.00195001,4569.5,4569.4,3.1096]
[1755267601295,0.93935001,4569.5,4568.6,3.572]
[1755267601500,0.1096,4569.3,4568.7,0.1096]
[1755267601658,0.50135001,4569.5,4568.9,0.1096]
[1755267602055,0.50135001,4569.5,4568.6,0.001]
[1755267602056,2.62649724,4569.4,4568.6,0.001]
[1755267602270,0.1096,4569.1,4568.6,0.0018]
[1755267602585,2.51219031,4569.3,4568.6,0.0018]
[1755267602586,2.18856762,4569.2,4568.6,0.0018]
[1755267602777,0.1096,4568.7,4568.6,0.0018]
[1755267603154,0.1096,4568.7,4568.6,2.19065435]
[1755267603489,0.1096,4569.0,4568.8,2.18871299]
[1755267603692,0.50055001,4569.5,4568.9,0.0218871]
[1755267603996,0.00115001,4569.5,4569.4,2.18847113]
[1755267604210,0.00115001,4569.5,4569.3,2.1885163]
[1755267604505,0.00115001,4569.5,4569.4,2.18847113]
[1755267604853,0.00115001,4569.5,4569.4,2.29807113]
[1755267605202,0.93855001,4569.5,4568.9,2.29830727]
[1755267605556,0.93855001,4569.5,4569.0,2.18866272]
[1755267605790,0.93855001,4569.5,4569.0,2.18861755]
[1755267606008,0.9374,4569.4,4568.9,0.1096]
[1755267606300,0.1096,4569.1,4568.6,0.0018]
[1755267606660,0.9432,4569.0,4568.6,0.0018]
[1755267607089,0.9432,4568.9,4568.6,0.0018]
[1755267607303,0.1096,4568.7,4568.6,0.0394]
[1755267607458,2.29840644,4568.7,4568.6,0.0394]
[1755267607658,3.24160644,4568.7,4568.6,0.0394]
[1755267609290,7.79160644,4568.7,4568.6,0.0394]
[1755267609590,8.7896394,4568.7,4568.6,0.0394]
[1755267609992,11.7896394,4568.7,4568.6,0.0394]
[1755267610193,15.3606394,4568.7,4568.6,0.0394]
[1755267612263,15.3606394,4568.7,4568.6,1e-08]
[1755267612468,5.73904601,4568.2,4568.1,0.001]
[1755267612784,6.64144817,4568.2,4568.1,1e-08]
[1755267613095,5.73938149,4567.5,4567.4,1e-08]
[1755267613264,9.41998149,4567.5,4567.4,1e-08]
[1755267613466,10.36318149,4567.5,4567.4,1e-08]
[1755267613675,14.36318149,4567.5,4567.4,1e-08]
[1755267613993,16.01843077,4567.5,4567.4,1e-08]
[1755267614858,3.55,4567.2,4565.6,0.11439063]
[1755267615063,2.19048453,4565.2,4565.1,0.04]
[1755267615262,9.31148453,4565.2,4565.1,0.04]
[1755267615495,10.25468453,4565.2,4565.1,0.04]
[1755267615822,3.57,4565.2,4565.1,0.04]
[1755267615996,4.0,4565.2,4565.1,0.04]
[1755267616600,3.571,4565.4,4565.2,2.19048453]
[1755267616924,3.571,4566.1,4565.3,0.4528]
[1755267617263,2.19010074,4566.0,4565.3,0.4528]
[1755267617463,0.4772,4566.0,4565.1,0.04]
[1755267617664,3.571,4566.1,4565.2,0.4528]
[1755267618198,3.571,4566.8,4565.7,2.19023538]
[1755267618401,3.571,4566.8,4565.8,2.19015938]
[1755267618586,3.571,4566.8,4565.3,0.5683338]
[1755267618789,5.256,4567.5,4566.4,2.1898706]
[1755267619102,5.256,4567.5,4565.9,2.64291503]
[1755267619103,3.571,4567.4,4565.9,2.64291503]
[1755267619271,6.70363688,4567.4,4566.1,2.19000509]
[1755267619466,6.70363688,4567.4,4565.9,2.64291503]
[1755267619806,6.70363688,4567.4,4566.0,2.19008465]
[1755267619807,0.55,4567.3,4566.0,2.19008465]
[1755267620107,5.256,4567.5,4565.9,0.4528]
[1755267620108,4.60302,4567.2,4565.9,0.4528]
[1755267620304,0.4772,4567.5,4565.9,0.4528]
[1755267620507,3.571,4567.4,4566.7,2.18972638]
[1755267620718,2.22919945,4567.9,4566.0,5.19010074]
[1755267620719,0.04,4567.9,4566.8,0.02189717]
[1755267621020,0.04,4567.9,4567.0,2.18962119]
[1755267621387,0.04,4567.9,4566.7,2.18975464]
[1755267621588,0.04,4567.9,4567.3,2.18946265]
[1755267621958,0.04,4567.9,4567.4,0.02189429]
[1755267622098,0.04,4567.9,4567.8,2.1892377]
[1755267622503,0.04,4567.9,4567.6,2.18931232]
[1755267622504,0.04,4567.9,4567.6,2.18932441]
[1755267622711,0.04,4567.9,4555.7,0.00524266]
[1755267622712,0.04,4567.9,4566.1,3.0]
[1755267622888,4.5142,4567.8,4566.2,0.4528]
[1755267623090,2.22923649,4567.9,4567.5,2.18933658]
[1755267623091,0.04,4567.9,4567.5,2.18933658]
[1755267623333,0.04,4567.9,4566.9,2.18963903]
[1755267623334,0.4011,4567.9,4566.9,2.18963903]
[1755267623501,0.4772,4567.8,4567.0,2.18961952]
[1755267623704,0.4772,4567.8,4566.5,0.4528]
[1755267623705,0.4772,4567.8,4567.1,2.1895673]
[1755267624015,0.04,4567.9,4566.8,0.4528]
[1755267624326,0.04,4567.9,4567.2,2.18952259]
[1755267624618,0.04,4567.9,4566.8,0.4528]
[1755267624785,0.04,4567.9,4567.1,2.18956711]
[1755267624989,0.1096,4567.5,4567.0,2.18961279]
[1755267625187,0.1096,4567.5,4567.1,2.18957221]
[1755267625689,0.1096,4567.5,4567.4,2.18942943]
[1755267626036,0.04,4567.9,4567.6,2.18932329]
[1755267626037,0.1496,4567.9,4567.6,2.18932329]
[1755267626215,0.1496,4567.9,4567.3,0.1096]
[1755267626717,0.1096,4567.5,4566.8,0.1096]
[1755267627485,0.1096,4567.5,4567.0,2.18959693]
[1755267627687,0.1096,4567.5,4566.8,0.1096]
[1755267627887,0.1096,4567.5,4566.8,2.29930388]
[1755267628096,0.4772,4567.6,4566.8,0.1096]
[1755267628298,0.1096,4567.2,4566.5,2.29941418]
[1755267629000,0.1096,4567.2,4566.5,0.1096]
[1755267629194,3.57,4567.1,4566.5,0.1096]
[1755267629425,2.18981298,4566.6,4566.5,0.1096]
[1755267629787,5.75958535,4567.1,4565.1,0.04]
[1755267629788,2.19005658,4566.1,4565.1,0.04]
[1755267629993,0.1096,4566.1,4565.6,2.19028951]
[1755267630194,0.1096,4566.1,4565.6,0.4528]
[1755267630388,0.1096,4566.1,4565.5,2.19032655]
[1755267631018,0.1096,4566.1,4565.4,0.1096]
[1755267631219,0.47756,4566.1,4565.4,0.1096]
[1755267631518,0.1096,4566.1,4565.5,0.4747034]
[1755267631822,0.1096,4566.3,4566.0,2.19009813]
[1755267631984,0.1096,4566.3,4566.1,2.19004788]
[1755267632188,0.1096,4566.3,4565.9,2.19014871]
[1755267632389,0.1096,4566.3,4565.9,2.64294871]
[1755267632614,0.1096,4566.3,4566.0,2.19009437]
[1755267632828,0.1096,4566.3,4566.1,2.19001697]
[1755267633148,0.1096,4566.3,4566.0,0.4528]
[1755267633821,0.1096,4566.3,4566.0,2.64289826]
[1755267634323,0.1096,4566.7,4566.2,2.18996918]
[1755267634501,0.84516,4566.6,4565.3,0.001]
[1755267634827,0.1096,4566.1,4565.5,0.1096]
[1755267635122,0.1096,4566.1,4565.6,2.19029217]
[1755267635423,0.1096,4566.1,4565.5,0.1096]
[1755267635926,2.29965362,4566.1,4565.5,0.1096]
[1755267636090,0.38616536,4566.1,4565.5,0.1096]
[1755267636291,0.1096,4566.1,4565.8,2.19018844]
[1755267636492,0.4892,4567.3,4566.2,2.18997519]
[1755267636688,0.1096,4567.1,4566.3,0.48929956]
[1755267636888,0.1096,4567.1,4566.7,2.1897619]
[1755267637098,0.1096,4567.1,4566.8,2.18970126]
[1755267637432,2.67847737,4567.8,4567.0,2.18962119]
[1755267637633,0.31493774,4567.7,4566.7,2.18975875]
[1755267637839,0.9181,4567.6,4565.8,3.4674]
[1755267638058,2.18975917,4566.8,4565.9,2.19014871]
[1755267638215,2.18933835,4567.6,4565.8,0.4674]
[1755267638216,2.18976764,4566.7,4565.8,0.4674]
[1755267638415,2.18976764,4566.7,4565.7,2.19020275]
[1755267638810,0.4892,4566.9,4566.2,2.18996735]
[1755267639432,3.569,4567.3,4566.2,0.73801161]
[1755267639709,2.18932887,4567.7,4566.3,0.4674]
[1755267639936,3.9999,4568.0,4567.3,2.18946796]
[1755267639937,3.571,4568.0,4567.3,2.18946796]
[1755267640132,2.18928101,4567.8,4567.0,2.18961028]
[1755267640338,0.79894245,4567.7,4566.8,0.4674]
[1755267640544,3.571,4568.0,4566.8,0.4674]
[1755267640724,3.571,4568.0,4567.2,2.18949118]
[1755267641044,3.571,4568.0,4567.3,2.18947302]
[1755267641249,3.571,4568.0,4566.8,0.4674]
[1755267641550,0.4289,4567.8,4566.2,6.569]
[1755267641720,2.59224128,4567.7,4566.7,2.18975296]
[1755267642048,2.59224128,4567.7,4566.7,0.0008]
[1755267642049,0.45291,4567.7,4566.7,0.0008]
[1755267642210,0.9181,4567.6,4566.7,0.0008]
[1755267642415,2.18959826,4567.1,4566.7,0.0008]
[1755267642615,2.40855809,4567.1,4566.7,0.0008]
[1755267642822,2.18962519,4567.0,4566.7,0.0008]
[1755267643625,2.18971708,4566.8,4566.7,0.0008]
[1755267644120,3.10781708,4566.8,4566.7,0.0008]
[1755267644352,3.10701708,4566.8,4566.7,0.0008]
[1755267644516,3.65857689,4566.8,4566.7,0.0008]
[1755267644945,7.20857689,4566.8,4566.7,0.0008]
[1755267645820,10.79767689,4566.8,4566.7,0.0008]
[1755267646044,11.22657689,4566.8,4566.7,0.0008]
[1755267646848,11.77657689,4566.8,4566.7,0.0008]
[1755267647478,11.24126237,4566.8,4566.7,0.0008]
[1755267647683,9.79767689,4566.8,4566.7,0.0008]
[1755267647969,9.90727689,4566.8,4566.7,0.0008]
[1755267648329,6.90727689,4566.8,4566.7,0.0008]
[1755267648531,7.33617689,4566.8,4566.7,0.0008]
[1755267648931,6.90727689,4566.8,4566.7,0.0008]
[1755267649169,7.33617689,4566.8,4566.7,0.0008]
[1755267650785,7.88617689,4566.8,4566.7,0.0008]
[1755267651131,11.88617689,4566.8,4566.7,0.0008]
[1755267651533,14.88617689,4566.8,4566.7,0.0008]
[1755267651758,15.35037613,4566.8,4566.7,0.0008]
[1755267652820,15.92701559,4566.8,4566.7,0.0008]
[1755267653101,15.35037613,4566.8,4566.7,0.0008]
[1755267655477,3.55,4566.6,4565.3,0.001]
[1755267655684,2.29998857,4565.4,4565.3,0.001]
[1755267655885,6.41698857,4565.4,4565.3,0.001]
[1755267656105,7.33508857,4565.4,4565.3,0.001]
[1755267656269,2.74048453,4565.2,4565.1,1e-08]
[1755267656474,2.74062849,4564.9,4564.8,1e-08]
[1755267656712,10.32033979,4564.9,4564.8,1e-08]
[1755267656908,12.13504012,4564.9,4564.8,1e-08]
[1755267657207,15.59244012,4564.9,4564.8,1e-08]
[1755267657392,14.69993979,4564.9,4564.8,1e-08]
[1755267657918,15.12883979,4564.9,4564.8,1e-08]
[1755267658070,15.5920531,4564.9,4564.8,1e-08]
[1755267658811,20.8520531,4564.9,4564.8,1e-08]
[1755267659167,2.74091646,4564.3,4564.2,1e-08]
[1755267659393,9.30791646,4564.3,4564.2,1e-08]
[1755267659669,5.74096446,4564.2,4564.1,1e-08]
[1755267660014,3.0,4563.6,4563.1,1e-08]
[1755267660182,2.7414446,4563.2,4563.1,1e-08]
[1755267660382,5.7414446,4563.2,4563.1,1e-08]
[1755267660689,10.68888078,4563.2,4563.1,1e-08]
[1755267661069,14.68888078,4563.2,4563.1,1e-08]
[1755267661721,14.68888078,4563.2,4561.1,0.5074]
[1755267661722,0.55,4563.0,4561.1,0.04]
[1755267661895,0.55,4563.0,4561.1,1e-08]
[1755267661896,2.7424055,4561.2,4561.1,1e-08]
[1755267662110,14.5694055,4561.2,4561.1,1e-08]
[1755267662275,15.4875055,4561.2,4561.1,1e-08]
[1755267662870,16.21783669,4561.2,4561.1,1e-08]
[1755267663105,18.54955374,4561.2,4561.1,1e-08]
[1755267663307,22.11655374,4561.2,4561.1,1e-08]
[1755267664230,22.11755374,4561.2,4561.1,1e-08]
[1755267664509,22.01237862,4561.2,4561.1,1e-08]
[1755267664712,21.55207691,4561.2,4561.1,1e-08]
[1755267664913,17.98407691,4561.2,4561.1,1e-08]
[1755267665226,21.55207691,4561.2,4561.1,1e-08]
[1755267665384,0.55,4559.9,4558.8,0.4674]
[1755267665580,0.55,4559.9,4558.1,0.1557]
[1755267665581,2.19356592,4558.8,4558.3,0.4674]
[1755267665782,2.19365594,4558.6,4558.3,0.4674]
[1755267666080,3.568,4558.5,4558.4,0.6231]
[1755267666614,2.19327476,4559.4,4558.4,0.6231]
[1755267666913,2.19341536,4559.1,4558.5,0.4356]
[1755267667128,0.1096,4558.6,4558.5,0.4356]
[1755267667487,0.1096,4558.7,4558.5,0.4356]
[1755267667687,0.1096,4558.9,4558.7,2.19360782]
[1755267667912,3.568,4559.1,4558.8,0.5913]
[1755267668114,3.568,4559.1,4559.0,2.19346347]
[1755267668317,3.568,4559.1,4559.0,2.78476347]
[1755267668513,0.1096,4559.3,4559.0,0.4356]
[1755267668829,0.1096,4559.3,4559.2,2.19336725]
[1755267669013,7.98253541,4561.2,4559.2,2.19336725]
[1755267669014,3.568,4559.5,4559.2,0.5913]
[1755267669327,3.568,4559.5,4559.3,2.78460841]
[1755267669503,3.568,4559.5,4559.3,2.70207478]
[1755267669705,3.568,4559.5,4559.4,0.5913]
[1755267669914,3.568,4559.5,4559.4,0.4356]
[1755267670302,3.568,4559.5,4558.7,0.2653]
[1755267670634,0.1096,4559.2,4558.8,0.4356]
[1755267670828,0.1096,4559.2,4558.7,0.2653]
[1755267671133,0.1096,4559.2,4558.9,0.4356]
[1755267671519,3.569,4559.1,4559.0,0.4356]
[1755267671895,0.55,4560.6,4559.0,0.4356]
[1755267671896,0.4923,4561.0,4559.1,2.19341536]
[1755267672096,0.1096,4560.0,4559.2,0.61323367]
[1755267672292,0.1096,4560.0,4559.4,0.1096]
[1755267672491,0.1096,4560.0,4559.5,0.45753222]
[1755267672731,3.568,4560.8,4559.6,0.1557]
[1755267672933,0.4923,4562.6,4559.6,3.17763174]
[1755267673091,0.1096,4561.2,4560.5,0.1096]
[1755267673431,0.1096,4561.4,4560.8,0.1096]
[1755267673591,0.1096,4561.4,4560.9,0.4356]
[1755267673795,0.1096,4561.4,4560.9,2.19253992]
[1755267673995,3.569,4561.7,4560.0,2.19297393]
[1755267673996,3.569,4561.7,4560.0,0.4356]
[1755267674257,0.1096,4560.6,4560.0,0.4356]
[1755267674540,0.1096,4560.1,4559.4,0.4356]
[1755267674706,2.19291011,4560.2,4559.4,0.4356]
[1755267674893,0.1096,4559.8,4559.4,0.4356]
[1755267675098,3.569,4560.5,4558.5,0.5452]
[1755267675099,0.1096,4559.5,4558.5,0.5452]
[1755267675347,0.1096,4559.3,4558.8,2.19353094]
[1755267675510,0.1096,4559.3,4559.1,2.19337396]
[1755267675716,0.1096,4559.3,4558.9,0.4356]
[1755267675717,0.1096,4559.3,4559.2,2.19336725]
[1755267676039,3.569,4559.7,4559.2,0.4356]
[1755267676243,0.1096,4559.3,4558.7,0.4356]
[1755267676554,0.1096,4559.2,4558.7,0.4356]
[1755267676852,0.4923,4560.2,4558.7,0.4356]
[1755267676853,3.569,4559.6,4559.0,2.1934627]
[1755267676996,3.569,4559.6,4558.8,0.1557]
[1755267676997,3.569,4559.6,4559.1,0.4356]
[1755267677247,3.569,4559.6,4558.9,2.19350319]
[1755267677248,3.569,4559.6,4559.2,0.4356]
[1755267677484,3.569,4559.6,4559.3,0.4356]
[1755267677681,0.1096,4559.4,4558.8,0.1096]
[1755267677882,0.1096,4559.4,4558.7,0.4356]
[1755267678050,3.6776,4559.4,4559.0,2.19342647]
[1755267678250,3.6776,4559.4,4559.1,0.4356]
[1755267678450,0.1096,4559.4,4558.8,0.1096]
[1755267678661,3.6776,4559.6,4559.0,2.19346347]
[1755267678860,3.6776,4559.6,4558.9,2.73870632]
[1755267679049,3.4923,4560.7,4559.0,0.4356]
[1755267679274,2.30269254,4559.8,4559.2,0.1096]
[1755267679477,3.6786,4559.8,4559.2,0.1096]
[1755267679788,3.6786,4559.8,4559.2,2.30292104]
[1755267680087,2.19312674,4559.7,4559.0,0.4356]
[1755267680285,0.1096,4559.4,4558.8,0.1096]
[1755267680448,3.569,4559.8,4558.6,0.001]
[1755267680793,0.86192916,4559.7,4558.6,0.001]
[1755267680997,2.19360437,4558.8,4558.6,0.001]
[1755267681169,3.568,4558.7,4558.6,0.001]
[1755267681505,5.76160782,4558.7,4558.6,0.001]
[1755267681658,7.16712002,4558.7,4558.6,0.001]
[1755267681960,2.1942817,4557.3,4557.2,0.114454]
[1755267682158,3.569,4557.3,4556.4,0.4356]
[1755267682387,2.194378,4557.1,4556.4,0.4356]
[1755267682703,0.45923285,4557.0,4556.4,0.4356]
[1755267682992,3.568,4556.9,4556.4,0.4356]
[1755267683217,3.568,4556.8,4556.0,2.19490292]
[1755267683387,0.45901772,4556.7,4555.8,0.11447863]
[1755267683692,0.45901772,4556.7,4555.2,2.63085299]
[1755267683693,2.19490706,4556.1,4555.2,0.4356]
[1755267683857,4.02701772,4556.0,4555.2,0.4356]
[1755267684055,0.45915664,4555.9,4555.2,0.4356]
[1755267684266,0.5770011,4556.4,4555.2,0.4356]
[1755267684501,1.03570489,4556.3,4555.2,0.4356]
[1755267684659,4.02770379,4556.2,4555.3,0.26309274]
[1755267684860,0.45870379,4556.1,4555.2,0.4356]
[1755267685105,0.45870379,4556.0,4555.9,2.19495599]
[1755267685275,3.569,4556.1,4554.8,0.11449914]
[1755267685597,0.55,4555.9,4554.8,0.11449914]
[1755267685774,1.14123121,4555.8,4554.1,0.4356]
[1755267686096,0.5770011,4555.4,4554.1,0.4356]
[1755267686299,3.569,4555.3,4554.0,0.11452684]
[1755267686512,0.5770011,4555.1,4554.0,0.11452684]
[1755267686796,1.004,4555.2,4552.0,0.4356]
[1755267686797,0.5770011,4554.4,4552.0,0.4356]
[1755267687096,0.5770011,4553.8,4552.0,3.4356]
[1755267687280,1.0693011,4554.3,4552.1,0.61426788]
[1755267687601,4.0,4554.9,4553.2,3.0]
[1755267687901,4.0,4554.9,4553.3,0.45756209]
[1755267688085,0.4923,4555.2,4552.9,3.0]
[1755267688288,0.4923,4555.2,4553.4,0.4356]
[1755267688460,3.577,4555.3,4553.5,0.1567]
[1755267688798,3.9347,4555.2,4553.9,2.1959138]
[1755267688999,3.9347,4555.2,4553.6,2.19604107]
[1755267689000,0.5770011,4555.5,4554.0,0.4356]
[1755267689300,3.578,4555.7,4555.2,2.19526394]
[1755267689502,3.578,4555.7,4555.0,2.19538968]
[1755267689711,3.578,4555.7,4555.1,0.4356]
[1755267689908,3.578,4555.7,4555.1,3.4356]
[1755267690096,3.578,4555.7,4555.1,1.29869781]
[1755267690298,3.578,4555.7,4554.5,3.0]
[1755267690608,0.1096,4554.8,4554.2,0.1096]
[1755267690778,3.578,4555.7,4553.4,3.0]
[1755267690779,3.581,4555.7,4554.3,0.76851727]
[1755267691111,3.581,4555.7,4555.1,0.1096]
[1755267691315,3.581,4555.7,4555.3,2.19523573]
[1755267691811,3.581,4555.7,4555.5,2.19511542]
[1755267692106,0.1096,4555.8,4555.3,0.0008]
[1755267692327,49.9992,4556.0,4555.9,2.19495599]
[1755267692483,20.84302125,4556.0,4555.9,6.06955472]
[1755267692688,0.1096,4557.5,4556.1,2.19485963]
[1755267692887,0.1096,4557.5,4556.2,0.02194811]
[1755267693113,0.6866011,4557.5,4556.6,0.1096]
[1755267693312,0.1096,4556.8,4555.7,0.4356]
[1755267693527,3.587,4556.7,4556.0,0.1096]
[1755267693712,0.5770011,4557.2,4556.5,0.1096]
[1755267693713,3.586,4556.6,4556.5,0.1096]
[1755267693898,0.6866011,4557.2,4556.4,2.19469781]
[1755267693899,0.1096,4557.2,4556.4,2.19469781]
[1755267694104,0.1096,4557.2,4556.3,0.1096]
[1755267694524,3.6976,4557.3,4556.7,0.1096]
[1755267695320,0.4923,4557.2,4555.3,0.4364]
[1755267695625,0.1096,4556.3,4555.6,0.1096]
[1755267695789,3.587,4556.2,4555.6,0.1096]
[1755267695993,0.1096,4556.0,4555.3,0.0008]
[1755267696191,0.36966,4556.0,4555.3,0.0008]
[1755267696427,0.1096,4555.5,4555.3,0.0008]
[1755267696617,3.586,4555.4,4555.3,0.0008]
[1755267697215,7.16040603,4555.4,4555.3,0.0008]
[1755267697615,2.19538968,4555.0,4554.9,0.001]
[1755267697850,3.33698556,4555.0,4554.9,0.001]
[1755267698215,4.63900913,4555.0,4554.9,0.001]
[1755267699236,5.07380913,4555.0,4554.9,0.001]
[1755267699637,1.48880913,4555.0,4554.9,0.001]
[1755267699845,5.07280913,4555.0,4554.9,0.001]
[1755267700044,4.63700913,4555.0,4554.9,0.001]
[1755267700249,7.26919881,4555.0,4554.9,0.001]
[1755267700552,8.21565036,4555.0,4554.9,0.001]
[1755267700924,11.96444608,4555.0,4554.9,0.001]
[1755267701123,17.23544608,4555.0,4554.9,0.001]
[1755267701325,21.23544608,4555.0,4554.9,1e-08]
[1755267701719,21.23944608,4555.0,4554.9,1e-08]
[1755267703561,0.55,4554.7,4552.6,2.1965397]
[1755267703760,0.57266909,4554.1,4552.6,0.23061397]
[1755267703923,0.1096,4553.2,4552.9,2.19636417]
[1755267704120,0.57266909,4554.2,4552.2,0.1575]
[1755267704121,3.586,4553.1,4552.2,0.1575]
[1755267704338,3.586,4553.0,4552.6,0.1096]
[1755267704534,0.1096,4553.2,4552.6,0.1096]
[1755267704535,3.586,4552.9,4552.6,0.1096]
[1755267704826,0.1096,4553.2,4552.6,2.58323831]
[1755267705028,3.586,4553.1,4552.6,0.1096]
[1755267705840,3.586,4553.1,4552.6,2.30614445]
[1755267706056,3.586,4553.1,4552.7,0.48666498]
[1755267706265,3.585,4553.0,4552.8,2.66115053]
[1755267706576,3.585,4553.0,4552.9,2.66110229]
[1755267706875,3.584,4553.1,4553.0,2.19635405]
[1755267707081,3.584,4553.1,4552.8,0.49673298]
[1755267707240,3.584,4553.1,4553.0,0.4647]
[1755267707444,3.584,4553.1,4553.0,0.5743]
[1755267707832,0.1096,4553.8,4553.0,0.5743]
[1755267707833,0.45908555,4553.7,4553.0,0.5743]
[1755267708040,3.582,4553.6,4553.3,2.19616848]
[1755267708332,3.582,4553.6,4553.5,2.19611288]
[1755267708562,3.582,4553.6,4553.5,0.4647]
[1755267708864,3.582,4553.6,4552.5,2.19655104]
[1755267709068,0.5689956,4553.5,4552.8,0.1096]
[1755267709365,0.4593956,4553.4,4552.8,0.1096]
[1755267709535,0.4593956,4553.3,4552.8,0.1096]
[1755267709865,0.4593956,4553.2,4552.8,0.1096]
[1755267710051,4.0403956,4553.1,4552.8,0.1096]
[1755267710381,0.46018124,4553.0,4552.8,0.1096]
[1755267710528,3.579,4553.0,4552.8,0.1096]
[1755267710732,3.579,4553.0,4552.9,0.1096]
[1755267710970,4.03924869,4553.0,4552.9,0.23060597]
[1755267711153,3.585,4553.4,4552.3,0.4647]
[1755267711354,4.04527689,4553.3,4552.9,0.1096]
[1755267711565,0.46027689,4553.2,4552.9,0.1096]
[1755267711866,3.585,4553.3,4552.9,0.1096]
[1755267711867,0.46078817,4553.1,4552.9,0.1096]
[1755267712178,0.46078817,4553.0,4552.9,0.1096]
[1755267712802,0.1096,4553.7,4553.5,2.19608591]
[1755267712950,0.46097002,4553.6,4552.9,0.7318]
[1755267713145,3.6956,4554.1,4553.4,0.1096]
[1755267713364,0.46097783,4554.0,4553.4,0.1096]
[1755267713700,0.1096,4553.7,4553.1,0.1096]
[1755267713908,4.04597783,4553.6,4553.1,0.1096]
[1755267714050,3.585,4553.6,4553.1,0.1096]
[1755267714609,1.05958522,4554.3,4553.2,0.4647]
[1755267714829,4.04523604,4554.2,4553.5,0.1096]
[1755267715025,0.46123604,4554.1,4553.5,0.1096]
[1755267715226,4.0676,4554.2,4553.5,0.1096]
[1755267715382,0.1096,4553.9,4553.3,0.1096]
[1755267715733,0.1096,4553.9,4553.1,0.1096]
[1755267716223,0.1096,4553.9,4552.3,0.001]
[1755267716224,0.1096,4553.3,4552.6,0.1096]
[1755267716391,3.584,4553.2,4552.6,0.1096]
[1755267716781,3.584,4553.2,4552.3,0.001]
[1755267716976,0.1096,4553.0,4552.4,0.1096]
[1755267718199,0.1096,4552.7,4552.3,0.001]
[1755267718399,3.6926,4552.7,4552.3,0.001]
[1755267719412,4.1762,4552.7,4552.3,0.001]
[1755267719834,0.4836,4552.6,4552.3,0.001]
[1755267719981,0.1096,4552.4,4552.3,0.001]
[1755267720292,3.579,4553.3,4552.4,0.5743]
[1755267720492,3.579,4553.3,4552.4,2.66134058]
[1755267720819,2.19656069,4552.6,4552.3,0.001]
[1755267720982,2.19664352,4552.4,4552.3,0.001]
[1755267721487,3.11704352,4552.4,4552.3,0.001]
[1755267721801,3.40004846,4552.4,4552.3,0.001]
[1755267722403,0.4836,4553.0,4552.3,0.001]
[1755267722604,2.19649355,4552.8,4552.3,0.001]
[1755267722779,3.583,4552.9,4552.3,0.001]
[1755267722984,0.9204,4552.7,4552.3,0.001]
[1755267723186,2.19659527,4552.5,4552.3,0.001]
[1755267723434,6.09434305,4552.4,4552.3,0.001]
[1755267723718,7.01474305,4552.4,4552.3,0.001]
[1755267723914,4.81809953,4552.4,4552.3,0.001]
[1755267724119,0.57598522,4553.6,4552.3,0.001]
[1755267724417,3.586,4553.5,4552.4,3.0]
[1755267724628,4.0696,4553.4,4552.3,0.001]
[1755267724779,3.586,4553.3,4552.3,0.001]
[1755267724978,4.5064,4553.3,4552.3,0.001]
[1755267725180,3.587,4553.2,4552.3,0.001]
[1755267725486,0.9204,4553.3,4552.3,0.001]
[1755267725487,3.586,4553.1,4552.4,2.19660655]
[1755267725790,3.586,4553.1,4552.4,2.19664082]
[1755267726009,3.586,4553.1,4552.4,0.48591223]
[1755267726192,3.586,4553.1,4552.3,0.001]
[1755267726391,2.19645057,4552.8,4552.3,0.001]
[1755267726591,0.4618202,4552.7,4552.3,0.001]
[1755267726806,3.586,4552.6,4552.3,0.001]
[1755267726987,0.8204218,4552.5,4552.3,0.001]
[1755267727328,0.46196583,4552.4,4552.3,0.001]
[1755267727646,3.0,4553.5,4552.4,0.4666]
[1755267727647,0.57598522,4553.5,4552.4,0.4666]
[1755267727794,3.588,4553.1,4552.4,0.6241]
[1755267727987,3.588,4553.1,4552.5,2.19659527]
[1755267728289,3.588,4553.1,4552.5,0.50183933]
[1755267728635,3.588,4553.1,4552.3,0.001]
[1755267728840,0.4621347,4553.0,4552.3,0.001]